bitfinex/quotes_BTCUSD_20260307
["timestamp","ask_amount","ask_price","bid_price","bid_amount"]
[1772923492409,0.05032904,67254.0,67245.0,0.05435386]
[1772923492611,0.05032904,67254.0,67244.0,0.07435607]
[1772923494171,0.00170001,67265.0,67250.0,0.15240267]
[1772923494463,0.00170001,67265.0,67253.0,0.0467396]
[1772923494617,0.00170001,67265.0,67256.0,0.15240267]
[1772923494818,0.00022001,67265.0,67257.0,0.15240267]
[1772923495163,0.00022001,67269.0,67256.0,0.0467396]
[1772923495164,0.00015,67274.0,67258.0,0.15240267]
[1772923495368,0.0004,67275.0,67262.0,0.15240267]
[1772923495573,0.0004,67275.0,67264.0,0.15240267]
[1772923495773,0.0004,67275.0,67267.0,0.0467396]
[1772923495996,0.0004,67275.0,67248.0,0.07435076]
[1772923495997,0.07472219,67275.0,67248.0,0.07435076]
[1772923496188,0.00148,67274.0,67251.0,0.00148]
[1772923496490,0.05032904,67270.0,67251.0,0.00148]
[1772923496689,0.14977226,67268.0,67251.0,0.00148]
[1772923496893,0.14977226,67266.0,67249.0,0.07435054]
[1772923497213,0.14977226,67266.0,67236.0,0.0001602]
[1772923497214,0.14977226,67255.0,67229.0,0.04696931]
[1772923497491,0.14977226,67251.0,67232.0,0.00032007]
[1772923497703,0.001,67257.0,67234.0,0.0467396]
[1772923497850,0.001,67257.0,67232.0,0.00032007]
[1772923497851,0.05032904,67256.0,67237.0,0.15240267]
[1772923498193,0.00248,67257.0,67232.0,0.00032007]
[1772923498194,0.14977226,67253.0,67232.0,0.00032007]
[1772923498499,0.05032904,67248.0,67232.0,0.00032007]
[1772923498793,0.05032904,67246.0,67232.0,0.00032007]
[1772923498972,0.05032904,67244.0,67232.0,0.00032007]
[1772923499368,0.05032904,67242.0,67233.0,0.07436824]
[1772923500164,0.05032904,67242.0,67232.0,0.00032007]
[1772923500351,0.05032904,67242.0,67232.0,0.07468839]
[1772923501324,0.04703925,67239.0,67232.0,0.07468839]
[1772923501479,0.04703925,67237.0,67232.0,0.07468839]
[1772923501910,0.00148,67245.0,67237.0,0.0002]
[1772923502211,0.00148,67246.0,67238.0,0.05098357]
[1772923502526,0.00148,67249.0,67237.0,0.0002]
[1772923502731,0.07434843,67251.0,67237.0,0.0002]
[1772923502732,0.07434843,67251.0,67240.0,0.16117755]
[1772923502902,0.07434843,67251.0,67238.0,0.00148]
[1772923502903,0.07434843,67251.0,67241.0,0.21216112]
[1772923503324,0.07434833,67253.0,67242.0,0.2865194]
[1772923503568,0.07434833,67253.0,67243.0,0.16117755]
[1772923503954,0.07434833,67253.0,67243.0,0.21216112]
[1772923504371,0.07434612,67255.0,67243.0,0.21216112]
[1772923504571,0.07434215,67257.0,67242.0,0.07435828]
[1772923504773,0.07582215,67257.0,67244.0,0.05098357]
[1772923505002,0.0001602,67258.0,67248.0,0.05098357]
[1772923505201,0.00148,67266.0,67247.0,0.05098357]
[1772923505353,0.04703925,67274.0,67250.0,0.05098357]
[1772923505354,0.07432466,67273.0,67250.0,0.05098357]
[1772923505556,0.07432466,67273.0,67248.0,0.07435165]
[1772923505557,0.00062001,67275.0,67254.0,0.05098357]
[1772923505783,0.0001913,67280.0,67258.0,0.16117755]
[1772923505980,0.00022001,67282.0,67262.0,0.05098357]
[1772923506183,1e-08,67282.0,67265.0,0.394007]
[1772923506414,1e-08,67290.0,67269.0,0.16117755]
[1772923506584,1e-08,67290.0,67272.0,0.05098357]
[1772923506767,0.08027035,67295.0,67272.0,0.00020609]
[1772923506768,0.00597001,67295.0,67272.0,0.00020609]
[1772923506969,0.00022001,67297.0,67275.0,0.191714]
[1772923507166,0.00022001,67298.0,67279.0,0.05098357]
[1772923507398,0.00022001,67299.0,67284.0,0.05098357]
[1772923507616,0.00022001,67299.0,67286.0,0.05098357]
[1772923507767,0.00022001,67299.0,67289.0,0.21216112]
[1772923507988,0.00022001,67299.0,67290.0,0.16117755]
[1772923508192,0.00022001,67299.0,67291.0,0.16117755]
[1772923509419,0.00022001,67299.0,67292.0,0.07430303]
[1772923509621,0.00022001,67299.0,67293.0,0.16117755]
[1772923509850,0.00022001,67299.0,67293.0,0.16102755]
[1772923510830,0.00022001,67299.0,67292.0,0.07430303]
[1772923511598,0.00022001,67299.0,67291.0,0.07430303]
[1772923512900,0.00022001,67299.0,67291.0,0.28316521]
[1772923514857,0.00268,67300.0,67291.0,0.07430303]
[1772923515073,0.0012,67300.0,67292.0,0.20886218]
[1772923515189,0.00268,67300.0,67292.0,0.20886218]
[1772923515637,0.00268,67300.0,67293.0,0.07430193]
[1772923515996,0.0012,67300.0,67293.0,0.07430193]
[1772923516198,0.00022001,67299.0,67293.0,0.07430193]
[1772923517094,0.00148,67302.0,67295.0,0.16117755]
[1772923517296,0.00148,67302.0,67296.0,0.20886218]
[1772923517650,0.00148,67302.0,67297.0,0.07429751]
[1772923518395,0.00148,67304.0,67297.0,0.07429751]
[1772923519309,0.00103001,67305.0,67297.0,0.07429751]
[1772923519505,0.00148,67304.0,67297.0,0.07429751]
[1772923519912,0.00148,67303.0,67297.0,0.07429751]
[1772923520312,0.00103001,67305.0,67297.0,0.07429751]
[1772923520510,0.00148,67304.0,67297.0,0.07429751]
[1772923520911,0.00148,67303.0,67297.0,0.07429751]
[1772923521424,0.00148,67302.0,67297.0,0.07429751]
[1772923521815,0.00103001,67305.0,67295.0,0.07429847]
[1772923522034,0.00148,67304.0,67295.0,0.07429847]
[1772923522330,0.00103001,67305.0,67295.0,0.07429847]
[1772923522541,0.00148,67303.0,67295.0,0.07429847]
[1772923523078,0.00148,67302.0,67295.0,0.07429847]
[1772923523282,0.05057232,67301.0,67295.0,0.07429847]
[1772923523576,0.00103001,67305.0,67295.0,0.07429847]
[1772923523739,0.00148,67304.0,67297.0,0.16117755]
[1772923523933,0.00148,67304.0,67299.0,0.23547285]
[1772923524136,0.00103001,67305.0,67299.0,0.0742953]
[1772923524358,0.00022001,67306.0,67299.0,0.0742953]
[1772923524359,0.00022001,67306.0,67299.0,0.23547285]
[1772923524741,0.07450787,67306.0,67299.0,0.23547285]
[1772923525277,0.00170001,67306.0,67299.0,0.23547285]
[1772923525641,0.00022001,67306.0,67299.0,0.23547285]
[1772923525841,0.00148,67305.0,67299.0,0.23547285]
[1772923526781,0.00022001,67306.0,67299.0,0.0742953]
[1772923526944,0.00148,67305.0,67299.0,0.0742953]
[1772923527815,0.00022001,67306.0,67299.0,0.0742953]
[1772923528015,0.00022001,67306.0,67300.0,0.00031217]
[1772923528417,0.07428671,67307.0,67300.0,0.00031217]
[1772923528418,0.07059875,67307.0,67301.0,0.0742931]
[1772923528620,0.07207875,67307.0,67301.0,0.0742931]
[1772923528990,0.00148,67306.0,67301.0,0.0742931]
[1772923529223,0.00148,67306.0,67302.0,0.00253979]
[1772923529875,0.00022001,67305.0,67302.0,0.00253979]
[1772923530076,0.00022001,67305.0,67302.0,0.07683154]
[1772923530633,0.00148,67307.0,67302.0,0.23800909]
[1772923531123,0.00148,67307.0,67302.0,0.07683154]
[1772923531335,0.01,67310.0,67302.0,0.07683154]
[1772923533018,0.01148,67311.0,67302.0,0.07683154]
[1772923533223,0.01040029,67311.0,67303.0,0.15190241]
[1772923533517,0.01040029,67311.0,67305.0,0.07428868]
[1772923533704,0.01040029,67311.0,67306.0,0.00253963]
[1772923533705,0.06097261,67311.0,67306.0,0.00253963]
[1772923533913,0.0842752,67318.0,67306.0,0.00253963]
[1772923533914,0.00847162,67317.0,67308.0,0.15190241]
[1772923534124,0.00711166,67317.0,67308.0,0.15190241]
[1772923534372,0.00711166,67317.0,67308.0,0.15173273]
[1772923535414,0.00859166,67317.0,67308.0,0.15173273]
[1772923535789,0.00711166,67317.0,67309.0,0.07428427]
[1772923536119,0.00859166,67317.0,67309.0,0.07428427]
[1772923536322,0.00711166,67317.0,67309.0,0.07428427]
[1772923536530,0.00859166,67317.0,67309.0,0.07428427]
[1772923537324,0.00733167,67317.0,67309.0,0.07428427]
[1772923537527,0.00881167,67317.0,67309.0,0.07428427]
[1772923537949,0.00733167,67317.0,67309.0,0.07428427]
[1772923538702,0.00733167,67317.0,67309.0,0.07413427]
[1772923538898,0.00233167,67317.0,67309.0,0.07413427]
[1772923540223,0.00233167,67317.0,67310.0,0.19727702]
[1772923540970,0.00575,67322.0,67311.0,0.15190241]
[1772923541268,0.00575,67322.0,67314.0,0.19727702]
[1772923541478,0.00575,67322.0,67315.0,0.07427764]
[1772923541636,0.00022001,67324.0,67315.0,0.27155466]
[1772923542475,0.00022001,67324.0,67315.0,0.22618005]
[1772923544596,0.00148,67329.0,67318.0,0.19727702]
[1772923544800,0.00148,67329.0,67319.0,0.15190241]
[1772923544985,0.01,67330.0,67319.0,0.15190241]
[1772923545170,0.00148,67329.0,67319.0,0.15190241]
[1772923545469,0.00148,67329.0,67315.0,0.07427764]
[1772923545470,0.04784093,67328.0,67315.0,0.07427764]
[1772923546194,0.00148,67327.0,67315.0,0.07427764]
[1772923546652,0.04932093,67327.0,67315.0,0.07427764]
[1772923546830,0.04932093,67327.0,67315.0,0.07410792]
[1772923547536,0.04784093,67327.0,67315.0,0.07410792]
[1772923547716,0.04932093,67327.0,67315.0,0.07410792]
[1772923548586,0.04784093,67327.0,67315.0,0.07410792]
[1772923548782,0.04932093,67327.0,67315.0,0.07410792]
[1772923549849,0.00148,67326.0,67315.0,0.07410792]
[1772923550054,0.04932093,67326.0,67315.0,0.07410792]
[1772923550257,0.04784093,67326.0,67315.0,0.07410792]
[1772923550402,0.00148,67325.0,67315.0,0.07410792]
[1772923551223,0.04784093,67326.0,67315.0,0.07410792]
[1772923551425,0.00148,67325.0,67315.0,0.07410792]
[1772923551914,0.04932093,67326.0,67315.0,0.07410792]
[1772923552131,0.00148,67326.0,67315.0,0.07430792]
[1772923552406,0.00148,67326.0,67315.0,0.22621033]
[1772923552810,0.00148,67325.0,67315.0,0.22621033]
[1772923553292,0.00022001,67327.0,67315.0,0.22621033]
[1772923553495,0.00148,67326.0,67315.0,0.22621033]
[1772923553779,0.00148,67326.0,67317.0,0.07427544]
[1772923553929,0.00148,67326.0,67317.0,0.07412544]
[1772923554137,0.00022001,67327.0,67317.0,0.07412544]
[1772923554343,0.00148,67326.0,67317.0,0.07412544]
[1772923555294,0.00170001,67327.0,67317.0,0.07412544]
[1772923555656,0.00022001,67327.0,67317.0,0.07412544]
[1772923559311,0.00022001,67327.0,67318.0,0.00030643]
[1772923561143,0.00022001,67327.0,67319.0,0.07427323]
[1772923561350,0.00022001,67327.0,67320.0,0.00030642]
[1772923562833,0.0444157,67326.0,67318.0,0.07427323]
[1772923563030,0.00170001,67327.0,67319.0,0.07427323]
[1772923563230,0.00170001,67327.0,67317.0,0.07412544]
[1772923563454,0.00022001,67327.0,67318.0,0.16101302]
[1772923564011,0.00022001,67327.0,67318.0,0.2057546]
[1772923564230,0.00022001,67327.0,67319.0,0.16101302]
[1772923564479,0.00022001,67327.0,67319.0,0.16249302]
[1772923564891,0.01,67330.0,67319.0,0.04622158]
[1772923565049,0.01,67330.0,67320.0,0.16101302]
[1772923565457,0.01,67330.0,67322.0,0.16101302]
[1772923566484,0.04035336,67334.0,67323.0,0.04474158]
[1772923566710,0.04035336,67334.0,67324.0,0.16101302]
[1772923567165,0.04035336,67334.0,67325.0,0.16101302]
[1772923567561,0.04035336,67334.0,67326.0,0.07426551]
[1772923567775,0.03887336,67334.0,67326.0,0.07426551]
[1772923568120,0.08298136,67334.0,67326.0,0.07426551]
[1772923568324,0.08351956,67334.0,67326.0,0.07426551]
[1772923569929,0.03910386,67334.0,67326.0,0.07426551]
[1772923570571,1e-08,67334.0,67327.0,0.16101302]
[1772923571022,0.04552287,67333.0,67301.0,0.29626677]
[1772923571197,0.15690792,67329.0,67310.0,0.3]
[1772923571353,0.15690792,67325.0,67310.0,0.3]
[1772923571562,0.04552287,67322.0,67311.0,0.03378243]
[1772923571773,0.04552287,67320.0,67311.0,0.07020015]
[1772923572010,0.04552287,67320.0,67310.0,0.29996632]
[1772923572211,0.04552287,67320.0,67308.0,0.0002]
[1772923572812,0.04552287,67320.0,67308.0,0.07448527]
[1772923573782,0.04552287,67318.0,67308.0,0.0002]
[1772923574977,0.04552287,67318.0,67309.0,0.16499502]
[1772923575414,0.00148,67321.0,67311.0,0.16499502]
[1772923575612,0.00014999,67324.0,67311.0,0.16499502]
[1772923575821,0.07425609,67335.0,67315.0,0.16496502]
[1772923575822,0.00148,67330.0,67315.0,0.16496502]
[1772923575997,0.00148,67330.0,67318.0,0.04633198]
[1772923576195,0.00148,67330.0,67320.0,0.16496502]
[1772923576621,0.00012,67333.0,67321.0,0.04633198]
[1772923576798,0.00012,67333.0,67322.0,0.16644502]
[1772923578613,0.07425526,67336.0,67325.0,0.04633198]
[1772923578986,0.07572836,67342.0,67328.0,0.04633198]
[1772923579188,0.01,67345.0,67331.0,0.16101302]
[1772923579372,0.0842448,67345.0,67334.0,0.04633198]
[1772923579575,0.11975347,67358.0,67339.0,0.04633198]
[1772923579729,0.11975347,67358.0,67325.0,0.00052]
[1772923579730,0.04552287,67355.0,67332.0,0.00148]
[1772923579935,0.0742306,67358.0,67327.0,0.16101302]
[1772923579936,0.15690792,67352.0,67330.0,0.00148]
[1772923580133,0.00022001,67337.0,67330.0,0.00148]
[1772923580740,0.00022001,67337.0,67332.0,0.002]
[1772923581127,0.00022001,67337.0,67332.0,0.001]
[1772923581327,0.04574288,67337.0,67331.0,0.07425999]
[1772923581526,0.04574288,67337.0,67331.0,0.07409036]
[1772923581950,0.00022001,67337.0,67331.0,0.07409036]
[1772923583411,0.00022001,67344.0,67332.0,0.16101302]
[1772923583621,0.00148,67343.0,67332.0,0.16101302]
[1772923583774,0.00148,67343.0,67333.0,0.04633198]
[1772923583972,0.00148,67343.0,67336.0,0.16101302]
[1772923584392,0.00148,67347.0,67336.0,0.16101302]
[1772923584616,0.00148,67347.0,67337.0,0.16101302]
[1772923584813,0.07423453,67355.0,67340.0,0.07425007]
[1772923585134,0.04552287,67352.0,67340.0,0.07425007]
[1772923585290,0.04552287,67351.0,67340.0,0.07425007]
[1772923587169,0.04552287,67349.0,67332.0,0.23527093]
[1772923587321,0.04552287,67349.0,67337.0,0.00148]
[1772923587766,0.04552287,67349.0,67337.0,0.00170001]
[1772923588118,0.04552287,67349.0,67337.0,0.00022001]
[1772923588322,0.00022001,67344.0,67337.0,0.00170001]
[1772923588620,0.00022001,67344.0,67337.0,0.00022001]
[1772923588838,0.00022001,67344.0,67337.0,0.00170001]
[1772923589053,0.00022001,67344.0,67337.0,0.00148]
[1772923589254,0.00022001,67351.0,67338.0,0.04633198]
[1772923589454,0.07423423,67355.0,67337.0,0.00148]
[1772923589654,0.07423336,67356.0,67337.0,0.00148]
[1772923589655,0.07571336,67356.0,67337.0,0.00148]
[1772923589874,0.07571336,67356.0,67339.0,0.04633198]
[1772923590090,0.07571336,67356.0,67342.0,0.16101302]
[1772923590388,0.07571336,67356.0,67346.0,0.16101302]
[1772923590537,0.07571336,67356.0,67348.0,0.16101302]
[1772923590963,0.04552287,67358.0,67345.0,0.00148]
[1772923591163,0.04552287,67358.0,67346.0,0.07424345]
[1772923591559,0.04564287,67358.0,67346.0,0.07424345]
[1772923592388,0.04552287,67357.0,67346.0,0.07424345]
[1772923592791,0.04552287,67357.0,67346.0,0.07409345]
[1772923593300,0.1197553,67356.0,67346.0,0.07557345]
[1772923593604,0.04552287,67355.0,67346.0,0.07409345]
[1772923593932,0.00148,67355.0,67346.0,0.23792787]
[1772923594116,0.04552287,67354.0,67346.0,0.07424345]
[1772923594297,0.04552287,67354.0,67343.0,0.07424676]
[1772923594617,0.04552287,67354.0,67335.0,0.23793942]
[1772923594618,0.04552287,67353.0,67339.0,0.07425117]
[1772923594820,0.04552287,67352.0,67339.0,0.07425117]
[1772923595251,0.04552287,67352.0,67337.0,0.07425282]
[1772923595385,0.04552287,67350.0,67336.0,0.07425448]
[1772923595728,0.04552287,67348.0,67336.0,0.07425448]
[1772923596081,0.04552287,67348.0,67335.0,0.0002]
[1772923596287,0.00148,67349.0,67308.0,1e-08]
[1772923596288,0.04552287,67344.0,67308.0,1e-08]
[1772923596484,0.04552287,67327.0,67307.0,1e-08]
[1772923596699,0.04552287,67324.0,67307.0,0.0742863]
[1772923596900,0.00148,67323.0,67321.0,0.0002]
[1772923597096,0.00148,67323.0,67314.0,0.16368442]
[1772923597097,0.00148,67326.0,67311.0,0.04633198]
[1772923597380,0.17816,67340.0,67311.0,0.04633198]
[1772923597381,0.00148,67328.0,67314.0,0.07427875]
[1772923597577,0.00148,67330.0,67317.0,0.04633198]
[1772923597889,0.04552287,67337.0,67322.0,0.16368442]
[1772923598100,0.00148,67335.0,67324.0,0.16368442]
[1772923598308,0.00148,67335.0,67320.0,0.00148]
[1772923598309,0.00148,67335.0,67325.0,0.04622266]
[1772923598509,0.00148,67335.0,67326.0,0.16368442]
[1772923598711,0.00148,67335.0,67327.0,0.16368442]
[1772923599390,0.00148,67335.0,67328.0,0.0742633]
[1772923599584,0.00148,67335.0,67329.0,0.16368442]
[1772923600404,0.04585305,67334.0,67321.0,0.07427044]
[1772923600607,0.04585305,67333.0,67315.0,0.07427668]
[1772923600807,0.10275731,67331.0,67315.0,0.07427668]
[1772923601032,0.04585305,67329.0,67315.0,0.07427668]
[1772923601231,0.04585305,67327.0,67315.0,0.07427668]
[1772923601825,0.07426551,67326.0,67314.0,0.00012]
[1772923602171,0.04585305,67325.0,67314.0,0.00012]
[1772923604089,0.04585305,67323.0,67318.0,0.0002]
[1772923604290,0.04585305,67321.0,67311.0,0.0002]
[1772923604491,0.04597298,67321.0,67311.0,0.0002]
[1772923604816,0.04597298,67321.0,67308.0,0.07443537]
[1772923606205,0.04585305,67320.0,67308.0,0.00015]
[1772923606575,0.07439164,67321.0,67301.0,0.0744922]
[1772923606576,0.10074892,67318.0,67301.0,0.0744922]
[1772923606795,0.04585305,67317.0,67301.0,0.0744922]
[1772923607014,0.04733305,67316.0,67301.0,0.0744922]
[1772923607693,0.04733305,67316.0,67301.0,0.0754922]
[1772923608077,0.07427764,67315.0,67301.0,0.0754922]
[1772923608280,0.04585305,67314.0,67301.0,0.0754922]
[1772923608688,0.04585305,67314.0,67300.0,0.07569331]
[1772923608899,0.04585305,67313.0,67301.0,0.05001697]
[1772923610217,0.07428096,67312.0,67301.0,0.05001697]
[1772923610429,0.04585305,67311.0,67301.0,0.05001697]
[1772923610605,0.04585305,67309.0,67301.0,0.05001697]
[1772923611194,0.04585305,67309.0,67301.0,0.05021697]
[1772923612011,0.04585305,67309.0,67292.0,0.04622266]
[1772923612212,0.04585305,67309.0,67294.0,0.07430082]
[1772923612411,0.04585305,67309.0,67295.0,0.16368442]
[1772923613321,0.07428459,67309.0,67295.0,0.16368442]
[1772923613543,0.04585305,67308.0,67294.0,0.07430082]
[1772923614358,0.04585305,67306.0,67294.0,0.07430082]
[1772923614709,0.04585305,67306.0,67294.0,0.07530082]
[1772923615164,0.04585305,67306.0,67294.0,0.07430082]
[1772923615341,0.04585305,67306.0,67294.0,0.07530082]
[1772923615515,0.04585305,67306.0,67294.0,0.07430082]
[1772923616322,0.04585305,67305.0,67292.0,0.07430082]
[1772923616516,0.04733305,67304.0,67292.0,0.07430082]
[1772923617586,0.04733305,67304.0,67292.0,0.07530082]
[1772923618087,0.04733305,67304.0,67292.0,0.07430082]
[1772923618440,0.04585305,67302.0,67292.0,0.001]
[1772923618678,0.04585305,67302.0,67292.0,0.0012]
[1772923619088,0.04585305,67302.0,67287.0,0.07450763]
[1772923619691,0.04570305,67302.0,67287.0,0.07450763]
[1772923620519,0.0742931,67301.0,67287.0,0.0002]
[1772923620823,0.04585305,67300.0,67287.0,0.0002]
[1772923622038,0.04585305,67300.0,67287.0,0.00060029]
[1772923622662,0.04604285,67298.0,67288.0,0.07430745]
[1772923622813,0.0742953,67299.0,67288.0,0.07430745]
[1772923622814,0.04604285,67296.0,67288.0,0.07430745]
[1772923623423,0.00148,67297.0,67289.0,0.1698461]
[1772923623621,0.04752285,67297.0,67288.0,0.07430745]
[1772923623909,0.00148,67297.0,67288.0,0.07430745]
[1772923624138,0.00148,67297.0,67289.0,0.1698461]
[1772923624779,0.00148,67297.0,67291.0,0.1698461]
[1772923626273,0.00148,67297.0,67291.0,0.1700461]
[1772923626480,0.00148,67296.0,67291.0,0.1700461]
[1772923626649,0.00148,67296.0,67292.0,0.04629967]
[1772923626851,0.00148,67296.0,67293.0,0.1698461]
[1772923632612,0.00148,67296.0,67288.0,0.1698461]
[1772923633186,0.00148,67296.0,67291.0,0.0002]
[1772923633748,0.00148,67296.0,67291.0,0.1700461]
[1772923635160,0.00148,67296.0,67291.0,0.07450333]
[1772923635356,0.00148,67296.0,67292.0,0.1698461]
[1772923635705,0.05021555,67295.0,67288.0,0.07430691]
[1772923637066,0.07577968,67296.0,67289.0,0.1698461]
[1772923637416,0.07577968,67296.0,67291.0,0.1699961]
[1772923638018,0.07577968,67296.0,67291.0,0.00015]
[1772923638327,0.05021555,67295.0,67291.0,0.00015]
[1772923639537,0.07430082,67295.0,67291.0,0.00015]
[1772923639778,0.05021555,67294.0,67291.0,0.00015]
[1772923641635,0.07430118,67294.0,67291.0,0.00035]
[1772923641842,0.05021555,67293.0,67291.0,0.00035]
[1772923643035,0.12451784,67293.0,67291.0,0.00035]
[1772923643583,0.05021555,67293.0,67291.0,0.00035]
[1772923644149,0.07430196,67293.0,67291.0,0.00035]
[1772923644548,0.05021555,67292.0,67291.0,0.00035]
[1772923645170,0.07430196,67293.0,67291.0,0.00035]
[1772923645565,0.05021555,67294.0,67291.0,0.00035]
[1772923646204,0.07430193,67295.0,67291.0,0.00035]
[1772923646370,0.05021555,67294.0,67291.0,0.00035]
[1772923646987,0.00148,67293.0,67291.0,0.00035]
[1772923647190,0.00148,67292.0,67291.0,0.00035]
[1772923651253,0.00148,67292.0,67288.0,0.07430702]
[1772923651254,0.05169555,67292.0,67288.0,0.07430702]
[1772923651455,0.05021555,67292.0,67284.0,0.0002]
[1772923651612,0.05169555,67292.0,67284.0,0.0002]
[1772923653568,0.05169555,67292.0,67284.0,0.07451187]
[1772923654176,0.05021555,67292.0,67288.0,0.0002]
[1772923654394,0.00148,67291.0,67288.0,0.0002]
[1772923654758,0.05169555,67291.0,67288.0,0.0002]
[1772923657878,0.00148,67291.0,67288.0,0.0002]
[1772923663820,0.00170001,67291.0,67288.0,0.0002]
[1772923665660,0.00148,67292.0,67289.0,0.15817291]
[1772923666241,0.00148,67292.0,67288.0,0.07450726]
[1772923667154,0.00148,67292.0,67288.0,0.0002]
[1772923667155,0.04738539,67292.0,67288.0,0.0002]
[1772923667885,0.00148,67292.0,67288.0,0.0002]
[1772923668952,0.12020778,67293.0,67288.0,0.0002]
[1772923669157,0.00148,67292.0,67288.0,0.0002]
[1772923669357,0.04738539,67292.0,67288.0,0.0002]
[1772923671302,0.00148,67292.0,67288.0,0.0002]
[1772923672890,0.00170001,67292.0,67288.0,0.0002]
[1772923673501,0.00170001,67292.0,67285.0,0.07431076]
[1772923674392,0.00022001,67292.0,67285.0,0.07431076]
[1772923674597,0.00170001,67292.0,67285.0,0.07431076]
[1772923675181,0.00170001,67292.0,67285.0,0.23248367]
[1772923680078,0.00170001,67292.0,67281.0,0.23248809]
[1772923680376,0.00176536,67292.0,67282.0,0.15817291]
[1772923681178,0.04767075,67292.0,67281.0,0.07431518]
[1772923681970,0.04767075,67292.0,67285.0,0.0002]
[1772923688213,0.00176536,67292.0,67285.0,0.0002]
[1772923688927,0.00176536,67292.0,67281.0,0.15473895]
[1772923690636,0.00148,67291.0,67282.0,0.07431408]
[1772923692627,0.00148,67291.0,67282.0,0.22905303]
[1772923694351,0.00148,67291.0,67274.0,0.16964013]
[1772923694549,0.00148,67291.0,67278.0,0.15473895]
[1772923694755,0.00148,67291.0,67279.0,0.07431739]
[1772923694929,0.00148,67291.0,67279.0,0.23053634]
[1772923695282,0.00148,67291.0,67279.0,0.22905634]
[1772923695434,0.00148,67291.0,67279.0,0.23053634]
[1772923696259,0.07578426,67291.0,67279.0,0.22905634]
[1772923696583,0.07578426,67291.0,67279.0,0.23053634]
[1772923696732,0.07578426,67291.0,67279.0,0.22905634]
[1772923696934,0.07578426,67291.0,67280.0,0.15473895]
[1772923697134,0.00148,67291.0,67280.0,0.15473895]
[1772923697368,0.07578462,67291.0,67280.0,0.15473895]
[1772923697582,0.00148,67291.0,67280.0,0.15473895]
[1772923698346,0.07578461,67291.0,67280.0,0.15473895]
[1772923698568,0.07578461,67291.0,67280.0,0.15621895]
[1772923698956,0.07578461,67291.0,67281.0,0.07431518]
[1772923704732,0.07578193,67293.0,67284.0,0.15473895]
[1772923705027,0.07578193,67293.0,67284.0,0.1548043]
[1772923705689,0.07578193,67293.0,67285.0,0.00047822]
[1772923705885,0.07430193,67293.0,67285.0,0.00047822]
[1772923706086,0.07430193,67293.0,67284.0,6.535e-05]
[1772923708662,0.07452157,67294.0,67284.0,6.535e-05]
[1772923708813,0.00170001,67301.0,67284.0,6.535e-05]
[1772923709020,0.00022001,67302.0,67284.0,6.535e-05]
[1772923709021,0.00148,67302.0,67286.0,0.15473895]
[1772923709214,0.07429082,67304.0,67290.0,0.15473895]
[1772923709520,0.00148,67303.0,67291.0,0.00083936]
[1772923709719,0.07429082,67304.0,67291.0,0.15557831]
[1772923709919,0.00148,67303.0,67291.0,0.15557831]
[1772923710557,0.07429082,67304.0,67291.0,0.15557831]
[1772923710768,0.07577082,67304.0,67292.0,0.07430303]
[1772923711837,0.07429082,67304.0,67292.0,0.07430303]
[1772923712042,0.07577082,67304.0,67292.0,0.07430303]
[1772923712246,0.00148,67304.0,67292.0,0.07430303]
[1772923712448,0.04982881,67303.0,67292.0,0.07430303]
[1772923712980,0.04982881,67301.0,67288.0,0.07430745]
[1772923713385,0.04982881,67301.0,67286.0,0.07430897]
[1772923713543,0.04982881,67299.0,67281.0,0.0743146]
[1772923713744,0.04982881,67295.0,67280.0,0.00148]
[1772923713946,0.04982881,67294.0,67280.0,0.00160016]
[1772923714353,0.04982881,67294.0,67280.0,0.00012016]
[1772923714973,0.04982881,67292.0,67280.0,0.00012016]
[1772923715217,0.05130881,67292.0,67280.0,0.00012016]
[1772923715382,0.05130881,67292.0,67280.0,0.00160016]
[1772923715903,0.05130881,67292.0,67280.0,0.00260016]
[1772923716066,0.05130881,67292.0,67280.0,0.00160016]
[1772923716262,0.05130881,67292.0,67280.0,0.00012016]
[1772923716467,0.05130881,67292.0,67280.0,0.00160016]
[1772923716905,0.07430414,67291.0,67280.0,0.07591542]
[1772923717114,0.07430414,67291.0,67280.0,0.00160016]
[1772923717978,0.07430414,67291.0,67280.0,0.00012016]
[1772923718173,0.12135577,67291.0,67280.0,0.00160016]
[1772923718778,0.12135577,67291.0,67280.0,0.00260016]
[1772923718975,0.12135577,67291.0,67280.0,0.00112016]
[1772923719185,0.12135577,67291.0,67280.0,0.00160016]
[1772923719923,0.12135577,67291.0,67280.0,0.00148]
[1772923720220,0.12135577,67291.0,67276.0,0.07431981]
[1772923720424,0.12135577,67291.0,67280.0,0.00148]
[1772923720425,0.12147582,67291.0,67280.0,0.00148]
[1772923720605,0.05070252,67290.0,67280.0,0.00148]
[1772923721442,0.07430635,67289.0,67280.0,0.00148]
[1772923721826,0.07430635,67289.0,67280.0,0.0017751]
[1772923722226,0.07430635,67289.0,67280.0,0.0002951]
[1772923722415,0.07430635,67289.0,67280.0,0.0017751]
[1772923722780,0.07430635,67289.0,67280.0,0.0002951]
[1772923722950,0.07430635,67289.0,67280.0,0.0017751]
[1772923723274,0.07430635,67289.0,67280.0,0.0002951]
[1772923723576,0.07430635,67289.0,67280.0,0.0017751]
[1772923723781,0.07430635,67289.0,67280.0,0.0002951]
[1772923723956,0.07430635,67289.0,67280.0,0.0017751]
[1772923724154,0.07430635,67289.0,67280.0,0.0002951]
[1772923724354,0.15690119,67285.0,67275.0,0.0001583]
[1772923724553,0.05070252,67283.0,67275.0,0.0001583]
[1772923725341,0.03901494,67281.0,67275.0,0.0001583]
[1772923727131,0.07431408,67282.0,67275.0,0.0001583]
[1772923727549,0.07431408,67284.0,67275.0,0.0001583]
[1772923727762,0.1250166,67284.0,67275.0,0.0016383]
[1772923727968,0.05070252,67283.0,67275.0,0.0018383]
[1772923728161,0.05070252,67283.0,67275.0,0.0003583]
[1772923728475,0.05070252,67283.0,67275.0,0.0018383]
[1772923728679,0.05070252,67283.0,67275.0,0.0003583]
[1772923728841,0.05070252,67283.0,67275.0,0.0018383]
[1772923729769,0.07431408,67282.0,67275.0,0.0003583]
[1772923729969,0.07431408,67282.0,67275.0,0.0018383]
[1772923730171,0.1250166,67282.0,67275.0,0.0018383]
[1772923730397,0.07431408,67282.0,67275.0,0.0003583]
[1772923730624,0.05070252,67281.0,67275.0,0.0003583]
[1772923731904,1e-08,67280.0,67275.0,0.0003583]
[1772923732128,0.0066793,67280.0,67275.0,0.0003583]
[1772923732271,0.07431563,67281.0,67275.0,0.0003583]
[1772923732476,0.07431563,67281.0,67271.0,0.0002]
[1772923732477,0.07431629,67280.0,67271.0,0.0002]
[1772923732676,0.07431629,67280.0,67272.0,0.00148]
[1772923732930,0.07431518,67281.0,67274.0,0.04761853]
[1772923733223,0.07431518,67281.0,67272.0,0.00148]
[1772923733224,0.05070252,67280.0,67272.0,0.00148]